[Event "*** Titled Tuesday Blitz"]
[Site "Chess.com"]
[Date "2020.04.07"]
[Round "2"]
[White "nurgyulsalimova"]
[Black "WIDBIFS"]
[Result "1-0"]
[WhiteElo "2549"]
[BlackElo "2790"]
[TimeControl "180+1"]
[EndTime "13:20:10 PDT"]
[Termination "nurgyulsalimova won by resignation"]

1. d4 {[%clk 0:03:00.9]} 1... Nf6 {[%clk 0:03:00.2]} 2. c4 {[%clk 0:02:59.8]}
2... g6 {[%clk 0:03:00.6]} 3. Nc3 {[%clk 0:02:55.8]} 3... Bg7 {[%clk 0:03:00.7]}
4. e4 {[%clk 0:02:53.8]} 4... d6 {[%clk 0:03:00.1]} 5. Nf3 {[%clk 0:02:51.6]}
5... O-O {[%clk 0:02:58.2]} 6. h3 {[%clk 0:02:51.4]} 6... e5 {[%clk 0:02:58]} 7.
d5 {[%clk 0:02:49.7]} 7... Nh5 {[%clk 0:02:58.2]} 8. g3 {[%clk 0:02:46.5]} 8...
f5 {[%clk 0:02:58.2]} 9. exf5 {[%clk 0:02:43.3]} 9... gxf5 {[%clk 0:02:59.1]}
10. Nh4 {[%clk 0:02:42]} 10... Nf4 {[%clk 0:02:59.2]} 11. Be3 {[%clk 0:02:36.7]}
11... Na6 {[%clk 0:02:55]} 12. Qd2 {[%clk 0:02:30.8]} 12... Ng6 {[%clk
0:02:53.8]} 13. Nxg6 {[%clk 0:02:26.8]} 13... hxg6 {[%clk 0:02:54.7]} 14. O-O-O
{[%clk 0:02:12.8]} 14... Nc5 {[%clk 0:02:35.4]} 15. h4 {[%clk 0:02:07.6]} 15...
Bf6 {[%clk 0:02:05]} 16. Be2 {[%clk 0:02:02.4]} 16... Bd7 {[%clk 0:02:02.5]} 17.
f3 {[%clk 0:01:32.6]} 17... a6 {[%clk 0:01:48.9]} 18. g4 {[%clk 0:01:28.9]}
18... f4 {[%clk 0:01:44.4]} 19. Bxc5 {[%clk 0:01:27]} 19... dxc5 {[%clk
0:01:43.5]} 20. Bd3 {[%clk 0:01:25.1]} 20... Bxh4 {[%clk 0:01:28.3]} 21. Bxg6
{[%clk 0:01:21.3]} 21... Kg7 {[%clk 0:01:27]} 22. Bc2 {[%clk 0:01:08.3]} 22...
Rh8 {[%clk 0:01:16.2]} 23. Qd3 {[%clk 0:01:04.7]} 23... Be8 {[%clk 0:01:01.7]}
24. Qf5 {[%clk 0:00:54.9]} 24... Qf6 {[%clk 0:00:57.7]} 25. Qd3 {[%clk
0:00:42.5]} 25... Bg6 {[%clk 0:00:34.1]} 26. Qe2 {[%clk 0:00:37.9]} 26... Rae8
{[%clk 0:00:18.1]} 27. Bxg6 {[%clk 0:00:35]} 27... Qxg6 {[%clk 0:00:19]} 28. Ne4
{[%clk 0:00:32.6]} 28... Be7 {[%clk 0:00:19.4]} 29. Qd2 {[%clk 0:00:28.8]} 29...
Bd6 {[%clk 0:00:17.2]} 30. Qf2 {[%clk 0:00:24]} 30... b6 {[%clk 0:00:16.2]} 31.
a3 {[%clk 0:00:14.3]} 31... a5 {[%clk 0:00:15.6]} 32. Qc2 {[%clk 0:00:10.6]}
32... Rxh1 {[%clk 0:00:14.5]} 33. Rxh1 {[%clk 0:00:11.5]} 33... Rh8 {[%clk
0:00:14.4]} 34. Rxh8 {[%clk 0:00:11.2]} 34... Kxh8 {[%clk 0:00:15.3]} 35. Qa4
{[%clk 0:00:10.9]} 35... Qf7 {[%clk 0:00:09.4]} 36. Qc6 {[%clk 0:00:09.9]} 36...
Qe7 {[%clk 0:00:09.8]} 37. Qa8+ {[%clk 0:00:09.9]} 37... Kh7 {[%clk 0:00:10]}
38. Qc8 {[%clk 0:00:09]} 38... Kg7 {[%clk 0:00:08.1]} 39. Qf5 {[%clk 0:00:08.4]}
39... Qh4 {[%clk 0:00:05.6]} 40. Qg5+ {[%clk 0:00:07.4]} 40... Qxg5 {[%clk
0:00:06.1]} 41. Nxg5 {[%clk 0:00:08.3]} 41... Be7 {[%clk 0:00:03.5]} 42. Ne6+
{[%clk 0:00:07.9]} 42... Kg6 {[%clk 0:00:02.6]} 43. Nxc7 {[%clk 0:00:07.8]}
43... Kg5 {[%clk 0:00:01.6]} 44. Ne6+ {[%clk 0:00:05.2]} 44... Kh4 {[%clk
0:00:01.5]} 45. Kd2 {[%clk 0:00:05.8]} 45... e4 {[%clk 0:00:01.8]} 46. Nxf4
{[%clk 0:00:05.1]} 46... Bg5 {[%clk 0:00:01.2]} 47. Ke3 {[%clk 0:00:04.5]} 47...
Kg3 {[%clk 0:00:01.9]} 48. Kxe4 {[%clk 0:00:04.3]} 48... Bxf4 {[%clk 0:00:02.8]}
49. b3 {[%clk 0:00:03.2]} 49... a4 {[%clk 0:00:01.7]} 50. bxa4 {[%clk
0:00:03.1]} 50... Bd6 {[%clk 0:00:02.6]} 51. g5 {[%clk 0:00:02.9]} 51... Kh4
{[%clk 0:00:03.1]} 52. f4 {[%clk 0:00:02.9]} 52... Bf8 {[%clk 0:00:04]} 53. Kf5
{[%clk 0:00:02.7]} 53... Kh5 {[%clk 0:00:04.8]} 54. Ke6 {[%clk 0:00:02.8]} 54...
Kg6 {[%clk 0:00:04.8]} 55. d6 {[%clk 0:00:03.1]} 55... Bxd6 {[%clk 0:00:04.6]}
56. Kxd6 {[%clk 0:00:03.3]} 56... b5 {[%clk 0:00:05.5]} 57. axb5 {[%clk
0:00:02.6]} 1-0

[Event "*** Titled Tuesday Blitz"]
[Site "Chess.com"]
[Date "2020.04.07"]
[Round "2"]
[White "SARGISMV"]
[Black "SanQui14"]
[Result "0-1"]
[WhiteElo "2514"]
[BlackElo "2309"]
[TimeControl "180+1"]
[EndTime "13:20:10 PDT"]
[Termination "SanQui14 won by resignation"]

1. d4 {[%clk 0:03:00.9]} 1... Nf6 {[%clk 0:02:59.8]} 2. c4 {[%clk 0:02:58.8]}
2... e6 {[%clk 0:03:00.2]} 3. Nc3 {[%clk 0:02:59.3]} 3... Bb4 {[%clk 0:03:00.6]}
4. e3 {[%clk 0:02:59.7]} 4... b6 {[%clk 0:02:59.8]} 5. Ne2 {[%clk 0:02:59.5]}
5... Bb7 {[%clk 0:02:59.9]} 6. a3 {[%clk 0:02:59.5]} 6... Bxc3+ {[%clk
0:02:56.9]} 7. Nxc3 {[%clk 0:03:00.4]} 7... O-O {[%clk 0:02:57.8]} 8. Bd3 {[%clk
0:02:57.2]} 8... d5 {[%clk 0:02:58.3]} 9. O-O {[%clk 0:02:55.3]} 9... Nbd7
{[%clk 0:02:57.7]} 10. b4 {[%clk 0:02:53.6]} 10... dxc4 {[%clk 0:02:57.1]} 11.
Bxc4 {[%clk 0:02:53.5]} 11... c5 {[%clk 0:02:58]} 12. dxc5 {[%clk 0:02:33.1]}
12... bxc5 {[%clk 0:02:58.9]} 13. b5 {[%clk 0:02:33.5]} 13... Nb6 {[%clk
0:02:57.4]} 14. Be2 {[%clk 0:02:33.3]} 14... Nfd5 {[%clk 0:02:52.6]} 15. Bb2
{[%clk 0:02:29.2]} 15... Qg5 {[%clk 0:02:50.1]} 16. Bf3 {[%clk 0:02:24.6]} 16...
Nc4 {[%clk 0:02:23.6]} 17. Ne4 {[%clk 0:02:16.4]} 17... Qg6 {[%clk 0:02:14]} 18.
Nxc5 {[%clk 0:01:16.8]} 18... Ndxe3 {[%clk 0:01:30.1]} 19. fxe3 {[%clk
0:01:12.9]} 19... Nxb2 {[%clk 0:01:10]} 20. Qd4 {[%clk 0:00:49.5]} 20... Bxf3
{[%clk 0:01:06.1]} 21. Rxf3 {[%clk 0:00:50.4]} 21... Rac8 {[%clk 0:00:56.5]} 22.
Rc1 {[%clk 0:00:24.7]} 22... Nd3 {[%clk 0:00:19.9]} 23. Nxd3 {[%clk 0:00:22.5]}
23... Rxc1+ {[%clk 0:00:20]} 24. Nxc1 {[%clk 0:00:22.4]} 24... Qb1 {[%clk
0:00:20.7]} 25. Rf1 {[%clk 0:00:22]} 25... Qxb5 {[%clk 0:00:20.4]} 26. Nd3
{[%clk 0:00:19.9]} 26... a5 {[%clk 0:00:20.5]} 27. a4 {[%clk 0:00:19.3]} 27...
Qb3 {[%clk 0:00:19.9]} 28. Ne5 {[%clk 0:00:17.9]} 28... f6 {[%clk 0:00:19.4]}
29. Nd7 {[%clk 0:00:14.7]} 29... Rc8 {[%clk 0:00:19.4]} 30. h4 {[%clk
0:00:13.8]} 30... Rc2 {[%clk 0:00:19.2]} 31. Kh2 {[%clk 0:00:10.4]} 31... Qa2
{[%clk 0:00:19.5]} 32. Rg1 {[%clk 0:00:09.8]} 32... Rd2 {[%clk 0:00:19.1]} 33.
Qa7 {[%clk 0:00:09]} 33... Qd5 {[%clk 0:00:19]} 34. Qb8+ {[%clk 0:00:08.6]}
34... Kf7 {[%clk 0:00:19.1]} 35. Qf8+ {[%clk 0:00:07.7]} 35... Kg6 {[%clk
0:00:19.5]} 36. Qe8+ {[%clk 0:00:08.1]} 36... Kh6 {[%clk 0:00:20]} 37. Nf8
{[%clk 0:00:08.2]} 37... Qe5+ {[%clk 0:00:19.6]} 38. Kh3 {[%clk 0:00:08.6]}
38... Qxe3+ {[%clk 0:00:19.6]} 39. g3 {[%clk 0:00:08.3]} 39... Qxg1 {[%clk
0:00:16.7]} 40. Qxe6 {[%clk 0:00:07.5]} 40... Qh1+ {[%clk 0:00:17.1]} 41. Kg4
{[%clk 0:00:07.9]} 41... Rd4+ {[%clk 0:00:17.6]} 42. Kf5 {[%clk 0:00:06.7]}
42... Qd5+ {[%clk 0:00:17.2]} 43. Qxd5 {[%clk 0:00:06.5]} 43... Rxd5+ {[%clk
0:00:18.1]} 44. Ke4 {[%clk 0:00:06.7]} 44... Rc5 {[%clk 0:00:17]} 45. Kd4 {[%clk
0:00:05.6]} 45... Rc1 {[%clk 0:00:16.8]} 46. Ne6 {[%clk 0:00:05.8]} 46... Ra1
{[%clk 0:00:16.7]} 47. Nc5 {[%clk 0:00:05.6]} 47... Rg1 {[%clk 0:00:17]} 48. Ne4
{[%clk 0:00:04.6]} 48... Ra1 {[%clk 0:00:16.7]} 49. Nc3 {[%clk 0:00:04.3]} 49...
Kh5 {[%clk 0:00:16.6]} 50. Kc4 {[%clk 0:00:04.6]} 50... Kg4 {[%clk 0:00:16.8]}
51. Kb5 {[%clk 0:00:05.3]} 51... Rc1 {[%clk 0:00:16.7]} 52. Nd5 {[%clk
0:00:05.1]} 52... Kxg3 {[%clk 0:00:16.2]} 53. h5 {[%clk 0:00:05.5]} 53... f5
{[%clk 0:00:16.3]} 54. h6 {[%clk 0:00:05.8]} 54... gxh6 {[%clk 0:00:16.5]} 55.
Kxa5 {[%clk 0:00:06.7]} 55... Rc5+ {[%clk 0:00:16.3]} 0-1

[Event "*** Titled Tuesday Blitz"]
[Site "Chess.com"]
[Date "2020.04.07"]
[Round "2"]
[White "aquiles88"]
[Black "superstructure"]
[Result "1-0"]
[WhiteElo "2219"]
[BlackElo "2439"]
[TimeControl "180+1"]
[EndTime "13:20:11 PDT"]
[Termination "aquiles88 won on time"]

1. g3 {[%clk 0:03:00]} 1... Nf6 {[%clk 0:02:55.7]} 2. Bg2 {[%clk 0:03:00.9]}
2... g6 {[%clk 0:02:56.3]} 3. e4 {[%clk 0:03:00.7]} 3... d6 {[%clk 0:02:50.4]}
4. d4 {[%clk 0:03:00.6]} 4... Bg7 {[%clk 0:02:48.8]} 5. Nc3 {[%clk 0:03:01.1]}
5... O-O {[%clk 0:02:48.6]} 6. Nge2 {[%clk 0:03:01.6]} 6... c5 {[%clk
0:02:35.6]} 7. dxc5 {[%clk 0:02:58.3]} 7... dxc5 {[%clk 0:02:34.7]} 8. Qxd8
{[%clk 0:02:57.4]} 8... Rxd8 {[%clk 0:02:35.6]} 9. Be3 {[%clk 0:02:56.8]} 9...
Na6 {[%clk 0:02:21.9]} 10. h3 {[%clk 0:02:40.4]} 10... Be6 {[%clk 0:02:05.8]}
11. O-O {[%clk 0:02:19.2]} 11... Rac8 {[%clk 0:01:54.8]} 12. a3 {[%clk
0:02:13.3]} 12... Nb8 {[%clk 0:01:44.5]} 13. Rfd1 {[%clk 0:02:07.9]} 13... b6
{[%clk 0:01:41.1]} 14. Nf4 {[%clk 0:02:00.9]} 14... Bc4 {[%clk 0:01:38.2]} 15.
b3 {[%clk 0:01:45.9]} 15... Ba6 {[%clk 0:01:37.5]} 16. Rxd8+ {[%clk 0:01:44.5]}
16... Rxd8 {[%clk 0:01:37]} 17. Rd1 {[%clk 0:01:45.4]} 17... Rxd1+ {[%clk
0:01:32.2]} 18. Nxd1 {[%clk 0:01:46.3]} 18... Nc6 {[%clk 0:01:30.7]} 19. Nc3
{[%clk 0:01:23.4]} 19... e6 {[%clk 0:01:29]} 20. Bf1 {[%clk 0:01:09.6]} 20...
Bb7 {[%clk 0:01:22]} 21. Bg2 {[%clk 0:01:02.3]} 21... Nd4 {[%clk 0:01:11.8]} 22.
Bxd4 {[%clk 0:00:56.2]} 22... cxd4 {[%clk 0:01:12.7]} 23. Nb5 {[%clk 0:00:56.4]}
23... e5 {[%clk 0:00:58.5]} 24. Nd3 {[%clk 0:00:51.9]} 24... Nxe4 {[%clk
0:00:39.6]} 25. Nxa7 {[%clk 0:00:50]} 25... f5 {[%clk 0:00:38.3]} 26. Nb5 {[%clk
0:00:45.5]} 26... Kf8 {[%clk 0:00:33.4]} 27. g4 {[%clk 0:00:44.6]} 27... Ke7
{[%clk 0:00:31.9]} 28. gxf5 {[%clk 0:00:38.5]} 28... gxf5 {[%clk 0:00:32.8]} 29.
f4 {[%clk 0:00:33.3]} 29... Ba6 {[%clk 0:00:23.8]} 30. a4 {[%clk 0:00:31.8]}
30... Bxb5 {[%clk 0:00:16.9]} 31. axb5 {[%clk 0:00:32.7]} 31... exf4 {[%clk
0:00:17]} 32. Nxf4 {[%clk 0:00:32.6]} 32... Nc3 {[%clk 0:00:17.4]} 33. Bc6
{[%clk 0:00:30.7]} 33... Kd6 {[%clk 0:00:16.3]} 34. Kf2 {[%clk 0:00:23.9]} 34...
Bh6 {[%clk 0:00:16.1]} 35. Nd3 {[%clk 0:00:21.9]} 35... Be3+ {[%clk 0:00:10]}
36. Kf3 {[%clk 0:00:19.1]} 36... Ke6 {[%clk 0:00:04.9]} 37. Nb4 {[%clk
0:00:14.3]} 37... Kf6 {[%clk 0:00:04.9]} 38. Nd3 {[%clk 0:00:13.6]} 38... Ke6
{[%clk 0:00:04.6]} 39. Nb4 {[%clk 0:00:13]} 39... Ke5 {[%clk 0:00:05.2]} 40.
Nd3+ {[%clk 0:00:12.7]} 40... Kd6 {[%clk 0:00:06.1]} 41. Be8 {[%clk 0:00:12.8]}
41... Ne4 {[%clk 0:00:05.3]} 42. h4 {[%clk 0:00:10.3]} 42... Nd2+ {[%clk
0:00:06.2]} 43. Ke2 {[%clk 0:00:10]} 43... Nb1 {[%clk 0:00:06.5]} 44. Nb4 {[%clk
0:00:08.2]} 44... Na3 {[%clk 0:00:06.4]} 45. Kd3 {[%clk 0:00:07.5]} 45... Kc5
{[%clk 0:00:06.9]} 46. Na6+ {[%clk 0:00:06.6]} 46... Kd6 {[%clk 0:00:05.9]} 47.
Nb4 {[%clk 0:00:07]} 47... Kc5 {[%clk 0:00:05.6]} 48. Na6+ {[%clk 0:00:07.1]}
48... Kd5 {[%clk 0:00:05.6]} 49. Nb4+ {[%clk 0:00:07.4]} 49... Kd6 {[%clk
0:00:05.5]} 50. Na6 {[%clk 0:00:07.4]} 50... f4 {[%clk 0:00:06]} 51. Ke4 {[%clk
0:00:07]} 51... Nxc2 {[%clk 0:00:05.1]} 52. Kd3 {[%clk 0:00:06.9]} 52... Ne1+
{[%clk 0:00:04.4]} 53. Ke2 {[%clk 0:00:06.7]} 53... Nc2 {[%clk 0:00:04]} 54. Bc6
{[%clk 0:00:06.8]} 1-0

[Event "*** Titled Tuesday Blitz"]
[Site "Chess.com"]
[Date "2020.04.07"]
[Round "2"]
[White "SHIVACalypso"]
[Black "serhanberat_ozdemir"]
[Result "0-1"]
[WhiteElo "2220"]
[BlackElo "2468"]
[TimeControl "180+1"]
[EndTime "13:20:12 PDT"]
[Termination "serhanberat_ozdemir won by resignation"]

1. Nf3 {[%clk 0:03:00.9]} 1... Nf6 {[%clk 0:02:59.7]} 2. c4 {[%clk 0:03:01.4]}
2... g6 {[%clk 0:02:56.2]} 3. g3 {[%clk 0:03:01.9]} 3... Bg7 {[%clk 0:02:54.8]}
4. Bg2 {[%clk 0:03:02.4]} 4... O-O {[%clk 0:02:54.5]} 5. O-O {[%clk 0:03:03]}
5... d6 {[%clk 0:02:53.2]} 6. Nc3 {[%clk 0:03:02.8]} 6... c6 {[%clk 0:02:48.9]}
7. Rb1 {[%clk 0:03:01.3]} 7... Qa5 {[%clk 0:02:47.5]} 8. b4 {[%clk 0:02:54.2]}
8... Qh5 {[%clk 0:02:47.4]} 9. h4 {[%clk 0:02:45.4]} 9... e5 {[%clk 0:02:43.5]}
10. d3 {[%clk 0:02:44.5]} 10... Bg4 {[%clk 0:02:40.5]} 11. a4 {[%clk 0:02:37.7]}
11... Nbd7 {[%clk 0:02:36.5]} 12. b5 {[%clk 0:02:37.2]} 12... Rfe8 {[%clk
0:02:31.4]} 13. bxc6 {[%clk 0:02:35.4]} 13... bxc6 {[%clk 0:02:32.3]} 14. Qb3
{[%clk 0:01:56.7]} 14... Rab8 {[%clk 0:02:28.7]} 15. Qc2 {[%clk 0:01:56.2]}
15... Rxb1 {[%clk 0:02:28]} 16. Qxb1 {[%clk 0:01:57.1]} 16... d5 {[%clk
0:02:22.6]} 17. cxd5 {[%clk 0:01:54.2]} 17... cxd5 {[%clk 0:02:23.5]} 18. Qb3
{[%clk 0:01:48.6]} 18... e4 {[%clk 0:02:12.7]} 19. dxe4 {[%clk 0:01:47.5]} 19...
dxe4 {[%clk 0:02:13.2]} 20. Ng5 {[%clk 0:01:46.1]} 20... Ne5 {[%clk 0:01:57.5]}
21. Bf4 {[%clk 0:01:31.9]} 21... h6 {[%clk 0:01:39.4]} 22. Bxe5 {[%clk
0:01:23.6]} 22... hxg5 {[%clk 0:01:39.3]} 23. hxg5 {[%clk 0:01:19]} 23... Qxg5
{[%clk 0:00:17.6]} 24. Bxf6 {[%clk 0:01:19.1]} 24... Qxf6 {[%clk 0:00:18.5]} 25.
Nxe4 {[%clk 0:01:17.5]} 25... Qa6 {[%clk 0:00:19]} 26. Ng5 {[%clk 0:01:11.9]}
26... Qf6 {[%clk 0:00:17]} 27. Ne4 {[%clk 0:01:09.2]} 27... Qe5 {[%clk
0:00:14.9]} 28. e3 {[%clk 0:01:06.8]} 28... Be6 {[%clk 0:00:13.8]} 29. Qb7
{[%clk 0:01:01.1]} 29... Bd5 {[%clk 0:00:12.9]} 30. f4 {[%clk 0:00:52.9]} 30...
Qe6 {[%clk 0:00:03.5]} 31. Qxd5 {[%clk 0:00:45.8]} 31... Qxd5 {[%clk 0:00:04.4]}
32. Nf6+ {[%clk 0:00:45.9]} 32... Bxf6 {[%clk 0:00:05.1]} 33. Bxd5 {[%clk
0:00:45.9]} 33... Rxe3 {[%clk 0:00:06]} 34. Kg2 {[%clk 0:00:45.3]} 34... Ra3
{[%clk 0:00:06.2]} 35. Bc6 {[%clk 0:00:44.8]} 35... Kg7 {[%clk 0:00:07.1]} 36.
Rd1 {[%clk 0:00:42.9]} 36... Ra2+ {[%clk 0:00:07.5]} 37. Kf3 {[%clk 0:00:42.5]}
37... Ra3+ {[%clk 0:00:08.1]} 38. Kg2 {[%clk 0:00:42.8]} 38... Rc3 {[%clk
0:00:08.8]} 39. Bb5 {[%clk 0:00:41.6]} 39... Rc2+ {[%clk 0:00:09]} 40. Kh3
{[%clk 0:00:41.1]} 40... Rc3 {[%clk 0:00:09.3]} 41. Rd7 {[%clk 0:00:40.1]} 41...
a5 {[%clk 0:00:08]} 42. Ra7 {[%clk 0:00:37.9]} 42... Bd4 {[%clk 0:00:06.9]} 43.
Rxa5 {[%clk 0:00:31.2]} 43... Bf2 {[%clk 0:00:07.4]} 44. Ra8 {[%clk 0:00:27.4]}
44... Bxg3 {[%clk 0:00:07]} 45. f5 {[%clk 0:00:24.1]} 45... gxf5 {[%clk
0:00:07.3]} 46. Kg2 {[%clk 0:00:23.4]} 46... f4 {[%clk 0:00:06.6]} 47. Rd8
{[%clk 0:00:20.5]} 47... Rc2+ {[%clk 0:00:06.5]} 48. Kg1 {[%clk 0:00:18.5]}
48... f3 {[%clk 0:00:04.6]} 49. Rd3 {[%clk 0:00:18.3]} 49... Rc1+ {[%clk
0:00:02]} 50. Rd1 {[%clk 0:00:15.2]} 50... Rxd1+ {[%clk 0:00:02.9]} 51. Bf1
{[%clk 0:00:14.9]} 51... Bh2+ {[%clk 0:00:03.5]} 52. Kxh2 {[%clk 0:00:14.5]}
52... Rxf1 {[%clk 0:00:04]} 53. Kg3 {[%clk 0:00:15.4]} 53... Ra1 {[%clk
0:00:04.9]} 54. Kxf3 {[%clk 0:00:15.6]} 54... Rxa4 {[%clk 0:00:05.8]} 0-1

[Event "*** Titled Tuesday Blitz"]
[Site "Chess.com"]
[Date "2020.04.07"]
[Round "2"]
[White "IMJonathanCarlstedt"]
[Black "AnnaChessLook"]
[Result "1-0"]
[WhiteElo "2467"]
[BlackElo "2217"]
[TimeControl "180+1"]
[EndTime "13:20:13 PDT"]
[Termination "IMJonathanCarlstedt won by resignation"]

1. d4 {[%clk 0:03:00.9]} 1... Nf6 {[%clk 0:02:59.5]} 2. Bf4 {[%clk 0:03:00.6]}
2... g6 {[%clk 0:02:57.7]} 3. e3 {[%clk 0:02:59.9]} 3... Bg7 {[%clk 0:02:55.6]}
4. Nf3 {[%clk 0:02:59.4]} 4... O-O {[%clk 0:02:56.5]} 5. Be2 {[%clk 0:02:58.2]}
5... d6 {[%clk 0:02:57.4]} 6. h3 {[%clk 0:02:57.3]} 6... Nc6 {[%clk 0:02:57]} 7.
O-O {[%clk 0:02:56.2]} 7... Ne4 {[%clk 0:02:56.6]} 8. c4 {[%clk 0:02:51]} 8...
e5 {[%clk 0:02:56.2]} 9. Bh2 {[%clk 0:02:50.8]} 9... exd4 {[%clk 0:02:50.2]} 10.
exd4 {[%clk 0:02:35.6]} 10... Ng5 {[%clk 0:02:49.3]} 11. Nbd2 {[%clk 0:02:03.3]}
11... Nxd4 {[%clk 0:02:45.8]} 12. Nxd4 {[%clk 0:02:02.6]} 12... Bxd4 {[%clk
0:02:46.7]} 13. Qb3 {[%clk 0:02:01.8]} 13... Bg7 {[%clk 0:02:42.1]} 14. Nf3
{[%clk 0:01:54.3]} 14... Be6 {[%clk 0:02:23.1]} 15. Rab1 {[%clk 0:01:38.2]}
15... Rb8 {[%clk 0:02:20.6]} 16. Bf4 {[%clk 0:01:35]} 16... Ne4 {[%clk
0:02:04.3]} 17. Qc2 {[%clk 0:01:31.9]} 17... Bf5 {[%clk 0:01:54.2]} 18. Bd3
{[%clk 0:01:30.4]} 18... Re8 {[%clk 0:01:53.9]} 19. Rfe1 {[%clk 0:01:28.4]}
19... d5 {[%clk 0:01:36.7]} 20. cxd5 {[%clk 0:01:22.3]} 20... Qxd5 {[%clk
0:01:37.6]} 21. Rbd1 {[%clk 0:01:22.1]} 21... Qc5 {[%clk 0:00:45.6]} 22. Qxc5
{[%clk 0:01:01.7]} 22... Nxc5 {[%clk 0:00:46.5]} 23. Bxf5 {[%clk 0:01:02.4]}
23... gxf5 {[%clk 0:00:46.5]} 24. Bxc7 {[%clk 0:00:59.4]} 24... Rbc8 {[%clk
0:00:46.5]} 25. Rxe8+ {[%clk 0:00:57.5]} 25... Rxe8 {[%clk 0:00:47.4]} 26. b3
{[%clk 0:00:53]} 26... Rc8 {[%clk 0:00:41.2]} 27. Bf4 {[%clk 0:00:46.8]} 27...
Ne6 {[%clk 0:00:36.3]} 28. Be3 {[%clk 0:00:42.2]} 28... a6 {[%clk 0:00:32.3]}
29. Rd2 {[%clk 0:00:33.2]} 29... Bf6 {[%clk 0:00:30.1]} 30. g3 {[%clk
0:00:29.8]} 30... Kg7 {[%clk 0:00:29.8]} 31. Kg2 {[%clk 0:00:29.5]} 31... b5
{[%clk 0:00:19]} 32. Rd6 {[%clk 0:00:26.6]} 32... a5 {[%clk 0:00:19]} 33. Ra6
{[%clk 0:00:25.2]} 33... Bc3 {[%clk 0:00:17.8]} 34. Nh4 {[%clk 0:00:23.4]} 34...
Kf6 {[%clk 0:00:16.5]} 35. f4 {[%clk 0:00:19.9]} 35... Rc7 {[%clk 0:00:15]} 36.
Nf3 {[%clk 0:00:19.1]} 36... Rd7 {[%clk 0:00:15]} 37. Ne5 {[%clk 0:00:17.1]}
37... Rd1 {[%clk 0:00:15.4]} 38. Nd7+ {[%clk 0:00:14.1]} 38... Ke7 {[%clk
0:00:14.9]} 39. Ne5 {[%clk 0:00:13.5]} 39... Kf6 {[%clk 0:00:14.8]} 40. Nc6
{[%clk 0:00:13.4]} 40... Re1 {[%clk 0:00:13.4]} 41. Kf2 {[%clk 0:00:12.1]} 41...
Ra1 {[%clk 0:00:13.2]} 42. a4 {[%clk 0:00:06.2]} 42... bxa4 {[%clk 0:00:12.9]}
43. bxa4 {[%clk 0:00:07.1]} 43... Rxa4 {[%clk 0:00:12.5]} 44. g4 {[%clk
0:00:08]} 44... fxg4 {[%clk 0:00:12.1]} 45. hxg4 {[%clk 0:00:07.7]} 45... Kg7
{[%clk 0:00:12]} 46. g5 {[%clk 0:00:07.8]} 46... Nxf4 {[%clk 0:00:12.2]} 47.
Bxf4 {[%clk 0:00:06.9]} 47... Rxf4+ {[%clk 0:00:13.1]} 48. Kg3 {[%clk
0:00:07.8]} 48... Rf5 {[%clk 0:00:13.3]} 49. Kg4 {[%clk 0:00:07.5]} 49... Rc5
{[%clk 0:00:12.2]} 50. Ne7 {[%clk 0:00:07.4]} 50... Bd2 {[%clk 0:00:09]} 51.
Nf5+ {[%clk 0:00:07.6]} 51... Kf8 {[%clk 0:00:08.2]} 52. Ra8+ {[%clk 0:00:06.9]}
1-0

[Event "*** Titled Tuesday Blitz"]
[Site "Chess.com"]
[Date "2020.04.07"]
[Round "2"]
[White "Noam_Vitenberg"]
[Black "hongnhung1234"]
[Result "0-1"]
[WhiteElo "2422"]
[BlackElo "2168"]
[TimeControl "180+1"]
[EndTime "13:20:14 PDT"]
[Termination "hongnhung1234 won by checkmate"]

1. e4 {[%clk 0:03:00.9]} 1... c5 {[%clk 0:02:59.4]} 2. Nf3 {[%clk 0:03:00.4]}
2... e6 {[%clk 0:02:59.7]} 3. d4 {[%clk 0:03:00.4]} 3... cxd4 {[%clk 0:03:00.6]}
4. Nxd4 {[%clk 0:03:01.3]} 4... Nc6 {[%clk 0:03:00.5]} 5. Nc3 {[%clk 0:03:01.8]}
5... Qc7 {[%clk 0:03:00.5]} 6. Be3 {[%clk 0:03:01.7]} 6... a6 {[%clk 0:03:00.1]}
7. g4 {[%clk 0:03:01.2]} 7... b5 {[%clk 0:02:56.8]} 8. Nxc6 {[%clk 0:03:00.7]}
8... Qxc6 {[%clk 0:02:57]} 9. Bg2 {[%clk 0:03:00.6]} 9... Bb7 {[%clk 0:02:50.2]}
10. O-O {[%clk 0:02:57.3]} 10... Be7 {[%clk 0:02:34.1]} 11. g5 {[%clk
0:02:51.2]} 11... h6 {[%clk 0:02:28.7]} 12. Qh5 {[%clk 0:02:29.9]} 12... O-O-O
{[%clk 0:02:04.9]} 13. Qxf7 {[%clk 0:01:41.6]} 13... hxg5 {[%clk 0:02:00.4]} 14.
Qf3 {[%clk 0:01:09.1]} 14... Rf8 {[%clk 0:01:42]} 15. Qe2 {[%clk 0:00:56.9]}
15... Nf6 {[%clk 0:01:30.8]} 16. Rfd1 {[%clk 0:00:45.3]} 16... Qc7 {[%clk
0:01:19.7]} 17. h3 {[%clk 0:00:26]} 17... g4 {[%clk 0:01:18.9]} 18. h4 {[%clk
0:00:12.1]} 18... Rxh4 {[%clk 0:01:17.6]} 19. Bg5 {[%clk 0:00:11.8]} 19... Rh5
{[%clk 0:01:10.9]} 20. Bxf6 {[%clk 0:00:10.5]} 20... Qh2+ {[%clk 0:01:04.9]} 21.
Kf1 {[%clk 0:00:09.6]} 21... Rxf6 {[%clk 0:01:05.8]} 22. Qxg4 {[%clk 0:00:07.3]}
22... Bc5 {[%clk 0:01:03.5]} 23. Rd2 {[%clk 0:00:07.3]} 23... Be3 {[%clk
0:00:52.5]} 24. Qxg7 {[%clk 0:00:04]} 24... Rg5 {[%clk 0:00:39.5]} 25. Qxd7+
{[%clk 0:00:02.4]} 25... Kb8 {[%clk 0:00:38.1]} 26. Qd6+ {[%clk 0:00:02.8]}
26... Qxd6 {[%clk 0:00:34.8]} 27. Rxd6 {[%clk 0:00:03.7]} 27... Rxf2+ {[%clk
0:00:34.5]} 28. Ke1 {[%clk 0:00:03.2]} 28... Rgxg2 {[%clk 0:00:34.8]} 29. Ne2
{[%clk 0:00:01.1]} 29... Rxe2+ {[%clk 0:00:33.8]} 30. Kd1 {[%clk 0:00:01.7]}
30... Rd2+ {[%clk 0:00:33.8]} 31. Rxd2 {[%clk 0:00:01.5]} 31... Rxd2+ {[%clk
0:00:34.7]} 32. Ke1 {[%clk 0:00:02.4]} 32... Bxe4 {[%clk 0:00:34.1]} 33. Rd1
{[%clk 0:00:03.3]} 33... Rxd1+ {[%clk 0:00:33]} 34. Kxd1 {[%clk 0:00:04.2]}
34... Bd4 {[%clk 0:00:33.4]} 35. c3 {[%clk 0:00:03.7]} 35... Bb6 {[%clk
0:00:32.5]} 36. Kc1 {[%clk 0:00:03.4]} 36... e5 {[%clk 0:00:33.3]} 37. a3 {[%clk
0:00:04.3]} 37... Bd5 {[%clk 0:00:33.4]} 38. b4 {[%clk 0:00:05.2]} 38... Bc4
{[%clk 0:00:32]} 39. Kb2 {[%clk 0:00:06.1]} 39... Kc7 {[%clk 0:00:32.6]} 40. a4
{[%clk 0:00:07]} 40... Kd6 {[%clk 0:00:31.7]} 41. axb5 {[%clk 0:00:07]} 41...
axb5 {[%clk 0:00:31.8]} 42. Kc2 {[%clk 0:00:07.4]} 42... Kd5 {[%clk 0:00:32.3]}
43. Kc1 {[%clk 0:00:08.3]} 43... Ke4 {[%clk 0:00:33]} 44. Kd1 {[%clk 0:00:09.2]}
44... Kf3 {[%clk 0:00:33.1]} 45. Ke1 {[%clk 0:00:09.2]} 45... e4 {[%clk
0:00:33.6]} 46. Kd2 {[%clk 0:00:10.1]} 46... e3+ {[%clk 0:00:32]} 47. Ke1 {[%clk
0:00:11]} 47... e2 {[%clk 0:00:32.7]} 48. Kd2 {[%clk 0:00:11.9]} 48... Kf2
{[%clk 0:00:29.7]} 49. Kc2 {[%clk 0:00:11.6]} 49... e1=Q {[%clk 0:00:28.7]} 50.
Kb2 {[%clk 0:00:11.2]} 50... Qd2+ {[%clk 0:00:28.9]} 51. Kb1 {[%clk 0:00:10]}
51... Bd3+ {[%clk 0:00:28.8]} 52. Ka1 {[%clk 0:00:09.9]} 52... Qxc3+ {[%clk
0:00:29.7]} 53. Ka2 {[%clk 0:00:10.8]} 53... Bc4+ {[%clk 0:00:30.2]} 54. Kb1
{[%clk 0:00:10.8]} 54... Qb3+ {[%clk 0:00:28.2]} 55. Kc1 {[%clk 0:00:10.8]}
55... Be3# {[%clk 0:00:27.9]} 0-1